[Event "GrandPrix_30.05"]
[Site "Chess.com"]
[Date "2020.05.30"]
[Round "4"]
[White "Valeriy_Neverov"]
[Black "Vuk2000"]
[Result "1/2-1/2"]
[WhiteElo "2086"]
[BlackElo "2205"]
[TimeControl "600+2"]
[EndTime "9:56:57 PDT"]
[Termination "Game drawn - insufficient material"]

1. c4 {[%clk 0:09:58.1]} 1... e5 {[%clk 0:09:59]} 2. Nc3 {[%clk 0:09:57.5]} 2...
Nc6 {[%clk 0:09:59.6]} 3. g3 {[%clk 0:09:57.4]} 3... g6 {[%clk 0:10:01.5]} 4.
Bg2 {[%clk 0:09:58]} 4... Bg7 {[%clk 0:10:02.6]} 5. e3 {[%clk 0:09:57.6]} 5...
d6 {[%clk 0:10:03.8]} 6. Nge2 {[%clk 0:09:58.1]} 6... Be6 {[%clk 0:10:04.8]} 7.
b3 {[%clk 0:09:49.9]} 7... Qd7 {[%clk 0:10:05]} 8. h3 {[%clk 0:09:31.8]} 8...
Nge7 {[%clk 0:10:04.2]} 9. Bb2 {[%clk 0:09:25.5]} 9... O-O {[%clk 0:10:02.9]}
10. d3 {[%clk 0:08:59.3]} 10... Rad8 {[%clk 0:10:00.8]} 11. Nd5 {[%clk
0:08:45.7]} 11... f5 {[%clk 0:09:15.4]} 12. Qd2 {[%clk 0:08:23.3]} 12... a5
{[%clk 0:09:13.7]} 13. O-O {[%clk 0:06:52.4]} 13... f4 {[%clk 0:09:03.9]} 14.
exf4 {[%clk 0:06:35.4]} 14... Bxh3 {[%clk 0:09:04]} 15. Nxe7+ {[%clk 0:05:20.6]}
15... Nxe7 {[%clk 0:08:59.6]} 16. Rae1 {[%clk 0:05:16.9]} 16... Bxg2 {[%clk
0:08:16.2]} 17. Kxg2 {[%clk 0:05:12.3]} 17... Nf5 {[%clk 0:08:17.4]} 18. Rh1
{[%clk 0:03:52]} 18... Qc6+ {[%clk 0:08:03.7]} 19. f3 {[%clk 0:03:25.4]} 19...
Rf7 {[%clk 0:07:55.1]} 20. d4 {[%clk 0:03:18.4]} 20... Rdf8 {[%clk 0:07:12.9]}
21. d5 {[%clk 0:03:17.6]} 21... Qd7 {[%clk 0:07:08.1]} 22. fxe5 {[%clk
0:03:10.1]} 22... dxe5 {[%clk 0:07:02.9]} 23. Ng1 {[%clk 0:03:06.3]} 23... Qd6
{[%clk 0:06:28.9]} 24. Re4 {[%clk 0:03:02.8]} 24... c6 {[%clk 0:05:35.8]} 25.
Qxa5 {[%clk 0:02:43.5]} 25... cxd5 {[%clk 0:05:35.5]} 26. Qxd5 {[%clk
0:02:41.6]} 26... Qxd5 {[%clk 0:05:01.6]} 27. cxd5 {[%clk 0:02:41.3]} 27... Nd6
{[%clk 0:05:01.7]} 28. Re2 {[%clk 0:02:28.3]} 28... e4 {[%clk 0:05:02.6]} 29.
Bxg7 {[%clk 0:02:17.7]} 29... exf3+ {[%clk 0:04:56.9]} 30. Nxf3 {[%clk
0:02:14.9]} 30... Rxg7 {[%clk 0:04:50.9]} 31. Nd4 {[%clk 0:02:10.7]} 31... Rd7
{[%clk 0:04:42.4]} 32. Ne6 {[%clk 0:02:04.1]} 32... Re8 {[%clk 0:04:34.1]} 33.
Rhe1 {[%clk 0:01:58.7]} 33... Rde7 {[%clk 0:04:33.3]} 34. Nf4 {[%clk 0:01:56.4]}
34... Rxe2+ {[%clk 0:04:30.8]} 35. Rxe2 {[%clk 0:01:57.2]} 35... Rc8 {[%clk
0:04:30.9]} 36. Re7 {[%clk 0:01:20.8]} 36... Rc2+ {[%clk 0:04:22.7]} 37. Re2
{[%clk 0:01:18.1]} 37... Rc3 {[%clk 0:04:19.5]} 38. Re6 {[%clk 0:01:15.9]} 38...
Nf5 {[%clk 0:04:17.3]} 39. d6 {[%clk 0:01:12.5]} 39... Kf7 {[%clk 0:03:39.1]}
40. d7 {[%clk 0:00:58.3]} 40... Rc2+ {[%clk 0:03:38.5]} 41. Re2 {[%clk
0:00:48.3]} 41... Rxe2+ {[%clk 0:03:33.7]} 42. Nxe2 {[%clk 0:00:48.9]} 42... Ke7
{[%clk 0:03:35.1]} 43. Kf3 {[%clk 0:00:49.4]} 43... Kxd7 {[%clk 0:03:35.6]} 44.
g4 {[%clk 0:00:50.1]} 44... Nd6 {[%clk 0:03:15.3]} 45. Nd4 {[%clk 0:00:50.3]}
45... Nf7 {[%clk 0:03:11.9]} 46. Kf4 {[%clk 0:00:46.3]} 46... Kd6 {[%clk
0:03:11.4]} 47. g5 {[%clk 0:00:44.1]} 47... Kd5 {[%clk 0:03:07.1]} 48. Nc2
{[%clk 0:00:40.8]} 48... Nd8 {[%clk 0:03:02.4]} 49. Ne3+ {[%clk 0:00:39]} 49...
Kd4 {[%clk 0:03:03]} 50. Nc4 {[%clk 0:00:35.5]} 50... Ne6+ {[%clk 0:02:59.8]}
51. Kg4 {[%clk 0:00:36]} 51... b5 {[%clk 0:02:56.3]} 52. Nd6 {[%clk 0:00:32.1]}
52... b4 {[%clk 0:02:55.3]} 53. Nb5+ {[%clk 0:00:18.7]} 53... Kc5 {[%clk
0:02:27.3]} 54. a4 {[%clk 0:00:15.6]} 54... Nd8 {[%clk 0:02:21.7]} 55. Kf4
{[%clk 0:00:06.7]} 55... Ne6+ {[%clk 0:02:11.2]} 56. Kg4 {[%clk 0:00:07.6]}
56... Kc6 {[%clk 0:01:51.4]} 57. Na7+ {[%clk 0:00:07.4]} 57... Kb6 {[%clk
0:01:40.7]} 58. Nb5 {[%clk 0:00:07.9]} 58... Kc5 {[%clk 0:01:35.9]} 59. Kh4
{[%clk 0:00:08.4]} 59... Kd5 {[%clk 0:01:36.3]} 60. Kg4 {[%clk 0:00:09.2]} 60...
Nc5 {[%clk 0:01:37.5]} 61. a5 {[%clk 0:00:08.5]} 61... Nxb3 {[%clk 0:01:31.7]}
62. a6 {[%clk 0:00:08.5]} 62... Kc6 {[%clk 0:01:31.7]} 63. a7 {[%clk 0:00:09.1]}
63... Kb7 {[%clk 0:01:31.6]} 64. Nc7 {[%clk 0:00:09.9]} 64... Kxa7 {[%clk
0:01:28.4]} 65. Nd5 {[%clk 0:00:10.6]} 65... Nc5 {[%clk 0:01:11.5]} 66. Nxb4
{[%clk 0:00:10.7]} 66... Kb7 {[%clk 0:01:10.6]} 67. Nd5 {[%clk 0:00:11.3]} 67...
Ne6 {[%clk 0:01:10.3]} 68. Nf6 {[%clk 0:00:11.7]} 68... Nf8 {[%clk 0:01:11.1]}
69. Kf4 {[%clk 0:00:12.4]} 69... Kc6 {[%clk 0:01:10.7]} 70. Ke5 {[%clk
0:00:12.8]} 70... Kc7 {[%clk 0:01:06]} 71. Ne4 {[%clk 0:00:11.7]} 71... Kd7
{[%clk 0:01:00.4]} 72. Kf6 {[%clk 0:00:12.1]} 72... Ne6 {[%clk 0:01:00.3]} 73.
Nf2 {[%clk 0:00:10.3]} 73... Kd6 {[%clk 0:00:54.1]} 74. Ng4 {[%clk 0:00:09.3]}
74... Kd5 {[%clk 0:00:52.2]} 75. Ne5 {[%clk 0:00:07.3]} 75... Nxg5 {[%clk
0:00:51.9]} 76. Nxg6 {[%clk 0:00:07.5]} 76... Ne4+ {[%clk 0:00:48.1]} 77. Kg7
{[%clk 0:00:07.9]} 77... h5 {[%clk 0:00:47.5]} 78. Kh6 {[%clk 0:00:08]} 78...
Nf6 {[%clk 0:00:46.8]} 79. Kg5 {[%clk 0:00:08]} 79... Ne4+ {[%clk 0:00:45]} 80.
Kxh5 {[%clk 0:00:08.7]} 1/2-1/2

[Event "GrandPrix_30.05"]
[Site "Chess.com"]
[Date "2020.05.30"]
[Round "4"]
[White "WoodlandMagic"]
[Black "Iljin_Timofey"]
[Result "1-0"]
[WhiteElo "2122"]
[BlackElo "2255"]
[TimeControl "600+2"]
[EndTime "9:57:07 PDT"]
[Termination "WoodlandMagic won by checkmate"]

1. d4 {[%clk 0:09:58.4]} 1... d5 {[%clk 0:08:39.9]} 2. c4 {[%clk 0:09:55]} 2...
e6 {[%clk 0:08:40.6]} 3. Nc3 {[%clk 0:09:54.6]} 3... Bb4 {[%clk 0:08:41.1]} 4.
cxd5 {[%clk 0:09:53.6]} 4... exd5 {[%clk 0:08:43]} 5. Bf4 {[%clk 0:09:53.9]}
5... c5 {[%clk 0:08:40.9]} 6. e3 {[%clk 0:09:50.4]} 6... Nc6 {[%clk 0:08:41.2]}
7. dxc5 {[%clk 0:09:25.6]} 7... Nf6 {[%clk 0:08:37.9]} 8. Bd3 {[%clk 0:09:01.4]}
8... O-O {[%clk 0:07:22.2]} 9. Ne2 {[%clk 0:08:23.5]} 9... Bxc5 {[%clk
0:07:20.8]} 10. O-O {[%clk 0:08:20.5]} 10... Bg4 {[%clk 0:07:21.4]} 11. Bg5
{[%clk 0:07:41.1]} 11... d4 {[%clk 0:06:47.1]} 12. exd4 {[%clk 0:07:30.4]} 12...
Nxd4 {[%clk 0:06:44.7]} 13. Qa4 {[%clk 0:07:06.7]} 13... Re8 {[%clk 0:04:52.4]}
14. Ng3 {[%clk 0:06:43.2]} 14... Be7 {[%clk 0:03:47.4]} 15. Nb5 {[%clk
0:04:09.6]} 15... h6 {[%clk 0:02:27.8]} 16. Be3 {[%clk 0:02:48.3]} 16... Ne6
{[%clk 0:02:11.5]} 17. Bf5 {[%clk 0:02:28.2]} 17... a6 {[%clk 0:01:46.9]} 18.
Bxg4 {[%clk 0:01:07.4]} 18... axb5 {[%clk 0:01:48.8]} 19. Qd1 {[%clk 0:01:08.3]}
19... Qxd1 {[%clk 0:01:41.5]} 20. Bxd1 {[%clk 0:01:08.3]} 20... Nd5 {[%clk
0:01:42.5]} 21. Bd2 {[%clk 0:01:01.5]} 21... Nd4 {[%clk 0:01:43]} 22. Ne2 {[%clk
0:00:47.4]} 22... Nxe2+ {[%clk 0:00:59.5]} 23. Bxe2 {[%clk 0:00:47.1]} 23... Bg5
{[%clk 0:01:01.4]} 24. Bf3 {[%clk 0:00:40.8]} 24... Rad8 {[%clk 0:00:56.1]} 25.
Bxg5 {[%clk 0:00:19.2]} 25... hxg5 {[%clk 0:00:58]} 26. Rfd1 {[%clk 0:00:20.3]}
26... Nb4 {[%clk 0:00:50.5]} 27. a3 {[%clk 0:00:15.1]} 27... Nc2 {[%clk
0:00:38.7]} 28. Rxd8 {[%clk 0:00:07.2]} 28... Rxd8 {[%clk 0:00:39.1]} 29. Rd1
{[%clk 0:00:06.4]} 29... Nd4 {[%clk 0:00:39.6]} 30. Kf1 {[%clk 0:00:07]} 30...
b6 {[%clk 0:00:39.5]} 31. Be2 {[%clk 0:00:05.4]} 31... Rd6 {[%clk 0:00:40]} 32.
g3 {[%clk 0:00:03.8]} 32... f5 {[%clk 0:00:40.5]} 33. Bh5 {[%clk 0:00:03.5]}
33... Kf8 {[%clk 0:00:37.4]} 34. Be2 {[%clk 0:00:04.2]} 34... Ke7 {[%clk
0:00:37.5]} 35. f3 {[%clk 0:00:05]} 35... f4 {[%clk 0:00:36.9]} 36. gxf4 {[%clk
0:00:05.3]} 36... gxf4 {[%clk 0:00:38.8]} 37. Kf2 {[%clk 0:00:06.7]} 37... g5
{[%clk 0:00:39.7]} 38. Bd3 {[%clk 0:00:07]} 38... Rh6 {[%clk 0:00:40]} 39. Kg2
{[%clk 0:00:06.5]} 39... Kf6 {[%clk 0:00:31.6]} 40. Bf1 {[%clk 0:00:04]} 40...
Nf5 {[%clk 0:00:26.4]} 41. Rc1 {[%clk 0:00:03.5]} 41... Ne3+ {[%clk 0:00:26.5]}
42. Kg1 {[%clk 0:00:04.7]} 42... Ke5 {[%clk 0:00:17]} 43. Bxb5 {[%clk
0:00:05.4]} 43... Kd4 {[%clk 0:00:17.9]} 44. Be2 {[%clk 0:00:06]} 44... Nf5
{[%clk 0:00:06.4]} 45. Rc3 {[%clk 0:00:06.9]} 45... Ne3 {[%clk 0:00:04.3]} 46.
Rd3+ {[%clk 0:00:07.9]} 46... Ke5 {[%clk 0:00:05.1]} 47. Rb3 {[%clk 0:00:08.5]}
47... Kd4 {[%clk 0:00:04.3]} 48. Rb4+ {[%clk 0:00:08]} 48... Kc5 {[%clk
0:00:04.8]} 49. Rb5+ {[%clk 0:00:08.2]} 49... Kd4 {[%clk 0:00:06]} 50. Rxg5
{[%clk 0:00:09.2]} 50... Nd5 {[%clk 0:00:03.3]} 51. Rg8 {[%clk 0:00:09.6]} 51...
Ke3 {[%clk 0:00:03.9]} 52. Re8+ {[%clk 0:00:10.9]} 52... Kd2 {[%clk 0:00:04.6]}
53. Rd8 {[%clk 0:00:11.3]} 53... Kxe2 {[%clk 0:00:04.9]} 54. Rxd5 {[%clk
0:00:12.2]} 54... Rg6+ {[%clk 0:00:05.8]} 55. Kh1 {[%clk 0:00:12.8]} 55... Kxf3
{[%clk 0:00:07.4]} 56. h4 {[%clk 0:00:10.6]} 56... Kg3 {[%clk 0:00:05.5]} 57.
Rg5+ {[%clk 0:00:09]} 57... Rxg5 {[%clk 0:00:02.5]} 58. hxg5 {[%clk 0:00:10.2]}
58... Kf2 {[%clk 0:00:02.6]} 59. g6 {[%clk 0:00:11]} 59... f3 {[%clk 0:00:04.5]}
60. g7 {[%clk 0:00:12.2]} 60... Ke2 {[%clk 0:00:06.4]} 61. g8=Q {[%clk
0:00:13.5]} 61... f2 {[%clk 0:00:08.3]} 62. Qe6+ {[%clk 0:00:14.2]} 62... Kd2
{[%clk 0:00:03.5]} 63. Qf5 {[%clk 0:00:15.2]} 63... Ke2 {[%clk 0:00:03.9]} 64.
Kg2 {[%clk 0:00:15.7]} 64... Kd2 {[%clk 0:00:03.3]} 65. Qxf2+ {[%clk 0:00:16.4]}
65... Kc1 {[%clk 0:00:02.1]} 66. Qxb6 {[%clk 0:00:16.5]} 66... Kb1 {[%clk
0:00:04]} 67. a4 {[%clk 0:00:17.8]} 67... Ka2 {[%clk 0:00:05.9]} 68. a5 {[%clk
0:00:19]} 68... Kb1 {[%clk 0:00:07.7]} 69. a6 {[%clk 0:00:20.3]} 69... Ka2
{[%clk 0:00:09.6]} 70. a7 {[%clk 0:00:21.5]} 70... Kb1 {[%clk 0:00:11.5]} 71.
Qg1+ {[%clk 0:00:21.7]} 71... Kc2 {[%clk 0:00:13.4]} 72. a8=Q {[%clk 0:00:22]}
72... Kxb2 {[%clk 0:00:08.6]} 73. Qc6 {[%clk 0:00:21.1]} 73... Ka2 {[%clk
0:00:02.7]} 74. Qgb6 {[%clk 0:00:19]} 74... Ka3 {[%clk 0:00:02.2]} 75. Qa8#
{[%clk 0:00:19.6]} 1-0

[Event "GrandPrix_30.05"]
[Site "Chess.com"]
[Date "2020.05.30"]
[Round "4"]
[White "ftorodent"]
[Black "chessdjw"]
[Result "1-0"]
[WhiteElo "2164"]
[BlackElo "2161"]
[TimeControl "600+2"]
[EndTime "9:57:37 PDT"]
[Termination "ftorodent won on time"]

1. d4 {[%clk 0:08:37.9]} 1... Nf6 {[%clk 0:09:59.3]} 2. c4 {[%clk 0:08:37.4]}
2... g6 {[%clk 0:09:59.9]} 3. Nc3 {[%clk 0:08:37.2]} 3... d5 {[%clk 0:10:01]} 4.
Nf3 {[%clk 0:08:37.3]} 4... Bg7 {[%clk 0:10:01.4]} 5. cxd5 {[%clk 0:08:38.3]}
5... Nxd5 {[%clk 0:10:03.3]} 6. Bg5 {[%clk 0:08:38.8]} 6... c5 {[%clk
0:10:02.1]} 7. Rc1 {[%clk 0:08:39.2]} 7... Nxc3 {[%clk 0:10:02.6]} 8. bxc3
{[%clk 0:08:40.1]} 8... Bf5 {[%clk 0:09:58.4]} 9. e3 {[%clk 0:08:35]} 9... Qa5
{[%clk 0:09:58.7]} 10. Qd2 {[%clk 0:08:35.5]} 10... Nd7 {[%clk 0:09:23.1]} 11.
Be2 {[%clk 0:08:32.8]} 11... Nf6 {[%clk 0:09:22.1]} 12. O-O {[%clk 0:08:13.2]}
12... Ne4 {[%clk 0:08:58.9]} 13. Qb2 {[%clk 0:08:13.2]} 13... Nxg5 {[%clk
0:08:57.4]} 14. Bb5+ {[%clk 0:07:54.6]} 14... Kf8 {[%clk 0:08:49.6]} 15. Nxg5
{[%clk 0:07:55.2]} 15... h6 {[%clk 0:08:45.1]} 16. Nf3 {[%clk 0:07:48.6]} 16...
Kg8 {[%clk 0:08:44.2]} 17. Bc4 {[%clk 0:07:47]} 17... Qc7 {[%clk 0:08:42.2]} 18.
Qb3 {[%clk 0:07:35.4]} 18... e6 {[%clk 0:08:15]} 19. Nd2 {[%clk 0:07:26.4]}
19... g5 {[%clk 0:08:13.2]} 20. e4 {[%clk 0:07:26.9]} 20... Bg6 {[%clk
0:08:11.9]} 21. d5 {[%clk 0:07:27.9]} 21... exd5 {[%clk 0:08:08.6]} 22. Bxd5
{[%clk 0:07:26.5]} 22... Rd8 {[%clk 0:07:52.9]} 23. Nc4 {[%clk 0:07:20.2]} 23...
b6 {[%clk 0:07:48.7]} 24. a4 {[%clk 0:06:45.8]} 24... Kh7 {[%clk 0:07:42.7]} 25.
a5 {[%clk 0:06:46.6]} 25... bxa5 {[%clk 0:07:30.4]} 26. Ra1 {[%clk 0:06:43.6]}
26... Rhe8 {[%clk 0:07:23.5]} 27. f3 {[%clk 0:06:40]} 27... f5 {[%clk
0:06:21.1]} 28. Rxa5 {[%clk 0:06:15]} 28... fxe4 {[%clk 0:06:18.7]} 29. fxe4
{[%clk 0:06:15.9]} 29... Rf8 {[%clk 0:05:47.9]} 30. Raa1 {[%clk 0:05:58.1]}
30... Rb8 {[%clk 0:05:24.4]} 31. Qa3 {[%clk 0:05:51.7]} 31... a6 {[%clk
0:04:08.6]} 32. Rae1 {[%clk 0:05:24.8]} 32... Qa7 {[%clk 0:03:54.5]} 33. e5
{[%clk 0:05:13.7]} 33... Rxf1+ {[%clk 0:03:46]} 34. Rxf1 {[%clk 0:05:13.5]}
34... Rd8 {[%clk 0:03:27.4]} 35. Be6 {[%clk 0:05:01]} 35... Rd3 {[%clk
0:02:52.5]} 36. Qb3 {[%clk 0:04:36.4]} 36... a5 {[%clk 0:02:38.4]} 37. Bf5
{[%clk 0:04:19.6]} 37... Bxf5 {[%clk 0:02:30.9]} 38. Rxf5 {[%clk 0:04:20.4]}
38... Qd7 {[%clk 0:02:26.1]} 39. Rf1 {[%clk 0:04:19.9]} 39... Qd5 {[%clk
0:02:18]} 40. e6 {[%clk 0:03:33.9]} 40... Qxe6 {[%clk 0:01:14.2]} 41. Qb1 {[%clk
0:03:03.4]} 41... Qe4 {[%clk 0:01:01.1]} 42. Nd6 {[%clk 0:02:44.2]} 42... Qg6
{[%clk 0:00:58.6]} 43. Nf5 {[%clk 0:02:28.4]} 43... Rd7 {[%clk 0:00:11.3]} 44.
Qb5 {[%clk 0:02:06.7]} 44... Rf7 {[%clk 0:00:12.1]} 45. Qxc5 {[%clk 0:02:06.9]}
45... a4 {[%clk 0:00:10.4]} 46. g4 {[%clk 0:02:02.5]} 46... Qa6 {[%clk
0:00:06.3]} 47. Qd5 {[%clk 0:01:50.8]} 47... Qa7+ {[%clk 0:00:06.9]} 48. Rf2
{[%clk 0:01:48.3]} 48... a3 {[%clk 0:00:08.1]} 49. Qe4 {[%clk 0:01:41.6]} 49...
a2 {[%clk 0:00:04.5]} 50. Nd4+ {[%clk 0:00:29]} 50... Kg8 {[%clk 0:00:04.7]} 51.
Qe8+ {[%clk 0:00:29.1]} 51... Rf8 {[%clk 0:00:05.8]} 52. Qe6+ {[%clk 0:00:29]}
52... Kh8 {[%clk 0:00:06.6]} 53. Rxa2 {[%clk 0:00:27]} 53... Bxd4+ {[%clk
0:00:05.9]} 54. cxd4 {[%clk 0:00:26.4]} 54... Qxd4+ {[%clk 0:00:07.8]} 55. Kg2
{[%clk 0:00:27.7]} 55... Qc3 {[%clk 0:00:08]} 56. Qxh6+ {[%clk 0:00:27.4]} 56...
Kg8 {[%clk 0:00:08.7]} 57. Qxg5+ {[%clk 0:00:28.1]} 57... Kh8 {[%clk 0:00:10.3]}
58. Qh6+ {[%clk 0:00:28.2]} 58... Kg8 {[%clk 0:00:11.2]} 59. Qg6+ {[%clk
0:00:29.3]} 59... Kh8 {[%clk 0:00:12.6]} 60. Qe4 {[%clk 0:00:28.1]} 60... Qf6
{[%clk 0:00:07.4]} 61. Re2 {[%clk 0:00:19.6]} 61... Qf1+ {[%clk 0:00:07.9]} 62.
Kg3 {[%clk 0:00:20.8]} 62... Qg1+ {[%clk 0:00:08.2]} 63. Rg2 {[%clk 0:00:21.8]}
63... Qa7 {[%clk 0:00:08]} 64. Re2 {[%clk 0:00:21.1]} 64... Qg1+ {[%clk
0:00:07.8]} 65. Kh4 {[%clk 0:00:21.9]} 65... Qc1 {[%clk 0:00:06.6]} 66. Qe5+
{[%clk 0:00:21.5]} 66... Kg8 {[%clk 0:00:07.7]} 67. Qg5+ {[%clk 0:00:22.4]}
67... Qxg5+ {[%clk 0:00:07.1]} 68. Kxg5 {[%clk 0:00:23.3]} 68... Kg7 {[%clk
0:00:07.4]} 69. Re7+ {[%clk 0:00:24]} 69... Kg8 {[%clk 0:00:08.1]} 70. h4 {[%clk
0:00:25.3]} 70... Ra8 {[%clk 0:00:08.4]} 71. h5 {[%clk 0:00:25.2]} 71... Ra5+
{[%clk 0:00:07.5]} 72. Kf6 {[%clk 0:00:26]} 72... Ra6+ {[%clk 0:00:08.2]} 73.
Re6 {[%clk 0:00:27]} 73... Ra4 {[%clk 0:00:08.3]} 74. g5 {[%clk 0:00:27.6]}
74... Rf4+ {[%clk 0:00:08.6]} 75. Kg6 {[%clk 0:00:28.4]} 75... Rf8 {[%clk
0:00:09.6]} 76. Re7 {[%clk 0:00:28]} 76... Ra8 {[%clk 0:00:08.3]} 77. Re6 {[%clk
0:00:28.2]} 77... Rb8 {[%clk 0:00:09.3]} 78. h6 {[%clk 0:00:29.4]} 78... Rc8
{[%clk 0:00:09.3]} 79. Rd6 {[%clk 0:00:24.8]} 79... Kh8 {[%clk 0:00:10.3]} 80.
Kf7 {[%clk 0:00:23.3]} 80... Rc7+ {[%clk 0:00:10]} 81. Ke6 {[%clk 0:00:24.3]}
81... Rc8 {[%clk 0:00:04.5]} 82. g6 {[%clk 0:00:25.1]} 82... Rg8 {[%clk
0:00:05.6]} 83. Ke7 {[%clk 0:00:25]} 83... Rb8 {[%clk 0:00:03.7]} 84. Rd8+
{[%clk 0:00:25.7]} 1-0

[Event "GrandPrix_30.05"]
[Site "Chess.com"]
[Date "2020.05.30"]
[Round "4"]
[White "Sakkcapak"]
[Black "Nitzan_Steinberg"]
[Result "0-1"]
[WhiteElo "2167"]
[BlackElo "2459"]
[TimeControl "600+2"]
[EndTime "9:57:38 PDT"]
[Termination "Nitzan_Steinberg won by checkmate"]

1. c4 {[%clk 0:10:01.9]} 1... e5 {[%clk 0:10:00.4]} 2. g3 {[%clk 0:10:00.7]}
2... Nf6 {[%clk 0:10:00]} 3. Bg2 {[%clk 0:10:01.5]} 3... d5 {[%clk 0:10:00.4]}
4. cxd5 {[%clk 0:10:02]} 4... Nxd5 {[%clk 0:10:02.3]} 5. Nc3 {[%clk 0:10:03.3]}
5... Nxc3 {[%clk 0:10:03.3]} 6. bxc3 {[%clk 0:10:01.2]} 6... Nc6 {[%clk
0:10:03.9]} 7. Nf3 {[%clk 0:09:55.9]} 7... Bc5 {[%clk 0:09:53.8]} 8. O-O {[%clk
0:09:47.7]} 8... O-O {[%clk 0:09:48.9]} 9. d3 {[%clk 0:09:27.6]} 9... Bg4 {[%clk
0:09:21.9]} 10. h3 {[%clk 0:09:11.3]} 10... Bf5 {[%clk 0:08:54.4]} 11. Rb1
{[%clk 0:08:50.6]} 11... Bb6 {[%clk 0:08:53.1]} 12. Ba3 {[%clk 0:08:46]} 12...
Re8 {[%clk 0:08:52.6]} 13. Nd2 {[%clk 0:08:23.6]} 13... Qd7 {[%clk 0:08:41.9]}
14. Kh2 {[%clk 0:08:21.5]} 14... Nd8 {[%clk 0:07:48.7]} 15. Qc2 {[%clk
0:07:53.9]} 15... Bg6 {[%clk 0:07:33.2]} 16. Nc4 {[%clk 0:07:43.7]} 16... Qe6
{[%clk 0:07:19.7]} 17. Qa4 {[%clk 0:07:14.5]} 17... e4 {[%clk 0:07:17.8]} 18.
Nxb6 {[%clk 0:06:21.7]} 18... cxb6 {[%clk 0:07:16.8]} 19. Rbd1 {[%clk
0:05:28.5]} 19... Nc6 {[%clk 0:07:06.8]} 20. Qb3 {[%clk 0:05:05.6]} 20... h6
{[%clk 0:05:34]} 21. Qxe6 {[%clk 0:04:06.2]} 21... Rxe6 {[%clk 0:05:33.4]} 22.
d4 {[%clk 0:04:00.7]} 22... Na5 {[%clk 0:05:22.6]} 23. d5 {[%clk 0:03:59.3]}
23... Re5 {[%clk 0:04:54.7]} 24. Rd4 {[%clk 0:03:57.9]} 24... Rd8 {[%clk
0:04:42.3]} 25. Rfd1 {[%clk 0:03:56.5]} 25... b5 {[%clk 0:04:43.2]} 26. Bc1
{[%clk 0:03:21.6]} 26... Rd7 {[%clk 0:04:25.7]} 27. Bf4 {[%clk 0:03:18.9]} 27...
Re8 {[%clk 0:04:26.6]} 28. a4 {[%clk 0:02:55.7]} 28... Nb3 {[%clk 0:03:58]} 29.
Rb4 {[%clk 0:02:53.7]} 29... bxa4 {[%clk 0:03:59.2]} 30. Rxa4 {[%clk 0:02:50.6]}
30... b6 {[%clk 0:04:00.6]} 31. c4 {[%clk 0:02:37.4]} 31... Rc8 {[%clk
0:03:49.8]} 32. Rb4 {[%clk 0:02:15.3]} 32... Na5 {[%clk 0:03:22.4]} 33. Rc1
{[%clk 0:02:08.1]} 33... f5 {[%clk 0:03:17.8]} 34. g4 {[%clk 0:01:47.3]} 34...
h5 {[%clk 0:02:42]} 35. Kg3 {[%clk 0:01:38.7]} 35... Kf7 {[%clk 0:02:33.7]} 36.
Be3 {[%clk 0:01:31.1]} 36... Nb7 {[%clk 0:02:30.5]} 37. Ra1 {[%clk 0:01:26.7]}
37... Nd6 {[%clk 0:02:29.4]} 38. Rba4 {[%clk 0:01:07.7]} 38... Nxc4 {[%clk
0:02:06.8]} 39. Rxa7 {[%clk 0:01:05.9]} 39... Rcc7 {[%clk 0:02:08.2]} 40. Rxc7
{[%clk 0:01:03.7]} 40... Rxc7 {[%clk 0:02:10.1]} 41. Rc1 {[%clk 0:01:01.6]}
41... b5 {[%clk 0:02:11.1]} 42. Bf4 {[%clk 0:00:59.4]} 42... Rd7 {[%clk
0:02:11]} 43. Rd1 {[%clk 0:00:59.1]} 43... Nb6 {[%clk 0:02:02.8]} 44. d6 {[%clk
0:00:58.2]} 44... Ke6 {[%clk 0:01:54.7]} 45. gxf5+ {[%clk 0:00:54.9]} 45... Bxf5
{[%clk 0:01:54.8]} 46. Rb1 {[%clk 0:00:56.5]} 46... Nd5 {[%clk 0:01:51.3]} 47.
Rxb5 {[%clk 0:00:56.4]} 47... h4+ {[%clk 0:01:52.2]} 48. Kxh4 {[%clk 0:00:53.3]}
48... Nxf4 {[%clk 0:01:53.4]} 49. Kg5 {[%clk 0:00:51.5]} 49... Nxh3+ {[%clk
0:01:41.5]} 50. Bxh3 {[%clk 0:00:39.2]} 50... Bxh3 {[%clk 0:01:43.4]} 51. Kf4
{[%clk 0:00:40]} 51... Rf7+ {[%clk 0:01:20.5]} 52. Kxe4 {[%clk 0:00:35.9]} 52...
Rxf2 {[%clk 0:01:08.4]} 53. Rg5 {[%clk 0:00:29.8]} 53... Rg2 {[%clk 0:01:00.3]}
54. Rh5 {[%clk 0:00:26.7]} 54... Bg4 {[%clk 0:00:48.7]} 55. Rg5 {[%clk
0:00:13.3]} 55... Bh3 {[%clk 0:00:28]} 56. Rh5 {[%clk 0:00:13.3]} 56... Rxe2+
{[%clk 0:00:23.3]} 57. Kf3 {[%clk 0:00:09.8]} 57... Bf1 {[%clk 0:00:24.2]} 58.
Rg5 {[%clk 0:00:08.6]} 58... Kxd6 {[%clk 0:00:12.6]} 59. Rxg7 {[%clk 0:00:09.4]}
59... Re6 {[%clk 0:00:12.3]} 60. Kf4 {[%clk 0:00:09.2]} 60... Bc4 {[%clk
0:00:12.9]} 61. Rg5 {[%clk 0:00:09.6]} 61... Bd5 {[%clk 0:00:12.2]} 62. Rg7
{[%clk 0:00:06.9]} 62... Kc5 {[%clk 0:00:11]} 63. Rg5 {[%clk 0:00:05.5]} 63...
Kd4 {[%clk 0:00:11.9]} 64. Kg3 {[%clk 0:00:06]} 64... Re3+ {[%clk 0:00:11.3]}
65. Kh4 {[%clk 0:00:06.2]} 65... Ke4 {[%clk 0:00:09.2]} 66. Rg4+ {[%clk
0:00:06.4]} 66... Ke5 {[%clk 0:00:07.7]} 67. Rg5+ {[%clk 0:00:07.7]} 67... Kd6
{[%clk 0:00:08]} 68. Rg6+ {[%clk 0:00:08.9]} 68... Be6 {[%clk 0:00:08.8]} 69.
Kg5 {[%clk 0:00:07.6]} 69... Ke5 {[%clk 0:00:09.6]} 70. Kh6 {[%clk 0:00:06.6]}
70... Bf5 {[%clk 0:00:08.5]} 71. Rb6 {[%clk 0:00:03.6]} 71... Rh3+ {[%clk
0:00:09]} 72. Kg7 {[%clk 0:00:04.7]} 72... Rh7+ {[%clk 0:00:08.5]} 73. Kf8
{[%clk 0:00:05.5]} 73... Ra7 {[%clk 0:00:09]} 74. Rc6 {[%clk 0:00:02.8]} 74...
Be6 {[%clk 0:00:09.1]} 75. Rc1 {[%clk 0:00:03.2]} 75... Kf6 {[%clk 0:00:09.7]}
76. Rf1+ {[%clk 0:00:04.2]} 76... Bf5 {[%clk 0:00:10.9]} 77. Re1 {[%clk
0:00:02.4]} 77... Rf7+ {[%clk 0:00:11.1]} 78. Ke8 {[%clk 0:00:03]} 78... Rc7
{[%clk 0:00:07.2]} 79. Kf8 {[%clk 0:00:03.5]} 79... Rh7 {[%clk 0:00:06.8]} 80.
Rf1 {[%clk 0:00:04.5]} 80... Rh8# {[%clk 0:00:07.5]} 0-1